fUSD/lending_fUSD_20251001
["ID","MTS","AMOUNT","RATE_DAILY","PERIOD"]
[388643430,1759295448916,-151.0,0.00018788,2]
[388643431,1759295448925,-151.0,0.00018788,2]
[388643432,1759295448934,-151.0,0.00018788,2]
[388643433,1759295448942,-151.0,0.00018788,2]
[388643434,1759295448952,-151.0,0.00018788,2]
[388643435,1759295448961,-151.0,0.00018788,2]
[388643436,1759295448971,-151.0,0.00018788,2]
[388643437,1759295448980,-151.0,0.00018788,2]
[388643438,1759295448989,-152.679004,0.00018788,2]
[388643439,1759295448998,-298.735777,0.00018788,2]
[388643440,1759295449008,-151.0,0.00018788,2]
[388643441,1759295449017,-152.679004,0.00018788,2]
[388643442,1759295449027,-151.0,0.00018788,2]
[388643443,1759295449036,-298.735777,0.00018788,2]
[388643444,1759295449046,-152.679004,0.00018788,2]
[388643445,1759295449056,-298.735777,0.00018788,2]
[388643446,1759295449066,-152.679004,0.00018788,2]
[388643447,1759295449075,-298.735777,0.00018788,2]
[388643448,1759295449085,-151.0,0.00018788,2]
[388643449,1759295449095,-151.632934,0.00018788,2]
[388643450,1759295449106,-151.0,0.00018788,2]
[388643451,1759295449116,-1836.837963,0.00018788,2]
[388643452,1759295449128,-1836.837963,0.00018788,2]
[388643453,1759295449139,-1836.837963,0.00018788,2]
[388643454,1759295449148,-151.0,0.00018788,2]
[388643455,1759295449159,-1836.837963,0.00018788,2]
[388643456,1759295449168,-151.0,0.00018788,2]
[388643457,1759295449182,-151.0,0.00018788,2]
[388643458,1759295449193,-151.0,0.00018788,2]
[388643459,1759295449202,-151.0,0.00018788,2]
[388643460,1759295449212,-437.986,0.00018788,2]
[388643461,1759295449222,-7972.54074,0.00018788,2]
[388643462,1759295449232,-151.0,0.00018788,2]
[388643463,1759295449242,-151.0,0.00018788,2]
[388643464,1759295449251,-437.986,0.00018788,2]
[388643465,1759295449264,-7972.54074,0.00018788,2]
[388643466,1759295449275,-151.0,0.00018788,2]
[388643467,1759295449285,-437.986,0.00018788,2]
[388643468,1759295449295,-151.0,0.00018788,2]
[388643469,1759295449304,-151.0,0.00018788,2]
[388643470,1759295449314,-6463.65551442,0.00018788,2]
[388643471,1759295449329,-737.81325717,0.00018788,2]
[388643472,1759295449418,-484.28378206,0.00018788,2]
[388643473,1759295449459,-286.78818635,0.00018788,2]
[388643474,1759295449469,-437.986,0.00018788,2]
[388643475,1759295449479,-482.968385,0.00018788,2]
[388643476,1759295449488,-4537.45101833,0.00018788,2]
[388643477,1759295449500,-284.68328364,0.00018788,2]
[388643478,1759295449540,-396.93837601,0.00018788,2]
[388643479,1759295449552,-2753.46806202,0.00018788,2]
[388643480,1759295449561,-482.968385,0.00018788,2]
[388643481,1759295449570,-151.0,0.00018788,2]
[388643482,1759295449579,-151.0,0.00018788,2]
[388643483,1759295449588,-151.0,0.00018788,2]
[388643484,1759295449598,-151.0,0.00018788,2]
[388643485,1759295449608,-160.0,0.00018788,2]
[388643486,1759295449617,-151.0,0.00018788,2]
[388643487,1759295449627,-160.0,0.00018788,2]
[388643488,1759295449636,-482.968385,0.00018788,2]
[388643489,1759295449646,-160.0,0.00018788,2]
[388643490,1759295449655,-160.0,0.00018788,2]
[388643491,1759295449664,-160.0,0.00018788,2]
[388643492,1759295449674,-151.0,0.00018788,2]
[388643493,1759295449683,-160.0,0.00018788,2]
[388643494,1759295449693,-482.968385,0.00018788,2]
[388643495,1759295449703,-160.0,0.00018788,2]
[388643496,1759295449713,-160.0,0.00018788,2]
[388643497,1759295449722,-160.0,0.00018788,2]
[388643498,1759295449732,-160.0,0.00018788,2]
[388643499,1759295449742,-151.0,0.00018788,2]
[388643500,1759295449751,-160.0,0.00018788,2]
[388643501,1759295449760,-160.0,0.00018788,2]
[388643502,1759295449770,-160.0,0.00018788,2]
[388643503,1759295449779,-180.423705,0.00018788,2]
[388643504,1759295449790,-160.0,0.00018788,2]
[388643505,1759295449800,-160.0,0.00018788,2]
[388643506,1759295449809,-160.0,0.00018788,2]
[388643507,1759295449819,-151.0,0.00018788,2]
[388643508,1759295449828,-160.0,0.00018788,2]
[388643509,1759295449837,-160.0,0.00018788,2]
[388643510,1759295449847,-180.423705,0.00018788,2]
[388643511,1759295449857,-21.05937869,0.00018788,2]
[388643512,1759295449869,-138.94062131,0.00018788,2]
[388643513,1759295449879,-160.0,0.00018788,2]
[388643514,1759295449889,-160.0,0.00018788,2]
[388643515,1759295449898,-151.0,0.00018788,2]
[388643516,1759295449908,-160.0,0.00018788,2]
[388643517,1759295449918,-180.423705,0.00018788,2]
[388643518,1759295449927,-160.0,0.00018788,2]
[388643519,1759295449937,-160.0,0.00018788,2]
[388643520,1759295449947,-160.0,0.00018788,2]
[388643521,1759295449956,-160.0,0.00018788,2]
[388643522,1759295449966,-180.423705,0.00018788,2]
[388643523,1759295449975,-160.0,0.00018788,2]
[388643524,1759295449985,-160.0,0.00018788,2]
[388643525,1759295449995,-160.0,0.00018788,2]
[388643526,1759295450004,-160.0,0.00018788,2]
[388643527,1759295450014,-160.0,0.00018788,2]
[388643528,1759295450023,-160.0,0.00018788,2]
[388643529,1759295450033,-160.0,0.00018788,2]
[388643530,1759295450042,-160.0,0.00018788,2]
[388643531,1759295450051,-160.0,0.00018788,2]
[388643532,1759295450061,-160.0,0.00018788,2]
[388643533,1759295450072,-160.0,0.00018788,2]
[388643534,1759295450081,-160.0,0.00018788,2]
[388643535,1759295450091,-151.0,0.00018788,2]
[388643536,1759295450101,-160.0,0.00018788,2]
[388643537,1759295450110,-160.0,0.00018788,2]
[388643538,1759295450120,-160.0,0.00018788,2]
[388643539,1759295450129,-160.0,0.00018788,2]
[388643540,1759295450139,-160.0,0.00018788,2]
[388643541,1759295450148,-146.02116869,0.00018788,2]
[388643542,1759295450161,-13.97883131,0.00018788,2]
[388643543,1759295450171,-160.0,0.00018788,2]
[388643544,1759295450185,-160.0,0.00018788,2]
[388643545,1759295450197,-160.0,0.00018788,2]
[388643546,1759295450206,-160.0,0.00018788,2]
[388643547,1759295450217,-160.0,0.00018788,2]
[388643548,1759295450226,-160.0,0.00018788,2]
[388643549,1759295450236,-149.73356204,0.00018788,2]
[388643550,1759295450248,-10.26643796,0.00018788,2]
[388643551,1759295450258,-160.0,0.00018788,2]
[388643552,1759295450267,-160.0,0.00018788,2]
[388643553,1759295450277,-160.0,0.00018788,2]
[388643554,1759295450287,-160.0,0.00018788,2]
[388643555,1759295450297,-160.0,0.00018788,2]
[388643556,1759295450306,-139.38356204,0.00018788,2]
[388643557,1759295450317,-20.61643796,0.00018788,2]
[388643558,1759295450326,-160.0,0.00018788,2]
[388643559,1759295450335,-160.0,0.00018788,2]
[388643560,1759295450344,-160.0,0.00018788,2]
[388643561,1759295450354,-53.10157134,0.00018788,2]
[388643562,1759295450366,-106.89842866,0.00018788,2]
[388643563,1759295450375,-160.0,0.00018788,2]
[388643564,1759295450385,-160.0,0.00018788,2]
[388643565,1759295450394,-160.0,0.00018788,2]
[388643566,1759295450403,-160.0,0.00018788,2]
[388643567,1759295450412,-160.0,0.00018788,2]
[388643568,1759295450422,-160.0,0.00018788,2]
[388643569,1759295450431,-160.0,0.00018788,2]
[388643570,1759295450441,-160.0,0.00018788,2]
[388643571,1759295450450,-160.0,0.00018788,2]
[388643572,1759295450459,-160.0,0.00018788,2]
[388643573,1759295450469,-160.0,0.00018788,2]
[388643574,1759295450479,-160.0,0.00018788,2]
[388643575,1759295450489,-160.0,0.00018788,2]
[388643576,1759295450500,-160.0,0.00018788,2]
[388643577,1759295450509,-160.0,0.00018788,2]
[388643578,1759295450519,-160.0,0.00018788,2]
[388643579,1759295450530,-160.0,0.00018788,2]
[388643580,1759295450539,-160.0,0.00018788,2]
[388643581,1759295450549,-160.0,0.00018788,2]
[388643582,1759295450558,-160.0,0.00018788,2]
[388643583,1759295450568,-160.0,0.00018788,2]
[388643584,1759295450577,-160.0,0.00018788,2]
[388643585,1759295450587,-160.0,0.00018788,2]
[388643586,1759295450597,-160.0,0.00018788,2]
[388643587,1759295450606,-160.0,0.00018788,2]
[388643588,1759295450615,-160.0,0.00018788,2]
[388643589,1759295450624,-160.0,0.00018788,2]
[388643590,1759295450633,-160.0,0.00018788,2]
[388643591,1759295450643,-160.0,0.00018788,2]
[388643592,1759295450652,-160.0,0.00018788,2]
[388643593,1759295450661,-160.0,0.00018788,2]
[388643594,1759295450670,-160.0,0.00018788,2]
[388643595,1759295450680,-160.0,0.00018788,2]
[388643596,1759295450689,-160.0,0.00018788,2]
[388643597,1759295450698,-160.0,0.00018788,2]
[388643598,1759295450707,-160.0,0.00018788,2]
[388643599,1759295450717,-160.0,0.00018788,2]
[388643600,1759295450726,-160.0,0.00018788,2]
[388643601,1759295450735,-160.0,0.00018788,2]
[388643602,1759295450745,-151.0,0.00018788,2]
[388643603,1759295450754,-160.00508668,0.00018788,2]
[388643604,1759295450765,-151.0,0.00018788,2]
[388643605,1759295450775,-151.0,0.00018788,2]
[388643606,1759295450784,-151.0,0.00018788,2]
[388643607,1759295450793,-175.94817114,0.00018788,2]
[388643608,1759295450802,-151.0,0.00018788,2]
[388643609,1759295450812,-151.0,0.00018788,2]
[388643610,1759295450821,-214.534968,0.00018788,2]
[388643611,1759295450831,-151.0,0.00018788,2]
[388643612,1759295450840,-151.0,0.00018788,2]
[388643613,1759295450849,-269.151137,0.00018788,2]
[388643614,1759295450858,-432.169124,0.00018788,2]
[388643615,1759295450867,-151.0,0.00018788,2]
[388643616,1759295450877,-196.3016693,0.00018788,2]
[388643617,1759295576674,166.5,0.00014299,2]
[388643619,1759295661429,157.07,8.93e-05,2]
[388643620,1759295661624,157.07,9.568e-05,2]
[388643621,1759295661836,157.07,0.00010206,2]
[388643622,1759295662251,157.07,0.00010844,2]
[388643623,1759295662449,157.07,0.00011482,2]
[388643624,1759295662653,157.07,0.0001212,2]
[388643625,1759295663061,157.07,0.00012758,2]
[388643626,1759295663279,157.07,0.00013396,2]
[388643627,1759295663491,157.07,0.00014033,2]
[388643628,1759295663707,157.07,0.00014671,2]
[388643629,1759295663939,157.07,0.00015309,2]
[388643630,1759295664170,157.07,0.00015947,2]
[388643631,1759295664355,157.07,0.00016585,2]
[388643632,1759295694916,3058.63645421,0.00030137,120]
[388643642,1759296156710,5099.5289761,0.000301,120]
[388643645,1759296308849,598253.43882,0.00017,2]
[388643646,1759296362561,917.28834177,8e-05,2]
[388643647,1759296390592,168.0,0.000167,2]
[388643648,1759296450069,794.98486142,0.00016,2]
[388643649,1759296474450,1271165.75794401,0.00017,2]
[388643650,1759296517849,-163.87,0.000169,2]
[388643651,1759296519253,538.75170147,0.0001,2]
[388643669,1759296631571,-300.0,0.00016899,2]
[388643671,1759296631582,-553.3485474,0.00016899,2]
[388643672,1759296631632,-646.6514526,0.00016899,2]
[388643673,1759296631642,-2500.0,0.000169,2]
[388643674,1759296631655,-184.6235757,0.000169,2]
[388643675,1759296631666,-2134.36573271,0.000169,2]
[388643676,1759296631676,-1366.17310418,0.000169,2]
[388643677,1759296631687,-1109.32250209,0.000169,2]
[388643678,1759296631699,-160.00508668,0.000169,2]
[388643679,1759296631708,-2015.0,0.00016959,2]
[388643680,1759296631717,-865.29,0.0001699,2]
[388643681,1759296631727,-865.29,0.0001699,2]
[388643682,1759296631737,-151.0,0.00016997,2]
[388643683,1759296631747,-300.0,0.00016999,2]
[388643684,1759296631756,-300.0,0.00016999,2]
[388643685,1759296631766,-248.0,0.00016999,2]
[388643686,1759296631775,-374.70367402,0.00016999,2]
[388643687,1759296631786,-291.29632598,0.00016999,2]
[388643688,1759296631795,-500.0,0.00016999,2]
[388643689,1759296631805,-281.49399328,0.00016999,2]
[388643690,1759296631814,-338.62000141,0.00016999,2]
[388643691,1759296631823,-155.43141692,0.00016999,2]
[388643692,1759296631832,-500.0,0.00016999,2]
[388643693,1759296631841,-500.0,0.00016999,2]
[388643694,1759296631851,-332.92715178,0.00016999,2]
[388643695,1759296631860,-500.0,0.00016999,2]
[388643696,1759296631958,-500.0,0.00016999,2]
[388643697,1759296631967,-156.81931766,0.00016999,2]
[388643698,1759296631977,-500.0,0.00016999,2]
[388643700,1759296631985,-500.0,0.00016999,2]
[388643702,1759296631995,-527.85511208,0.00016999,2]
[388643704,1759296632004,-500.0,0.00016999,2]
[388643706,1759296632014,-500.0,0.00016999,2]
[388643707,1759296632023,-500.0,0.00016999,2]
[388643708,1759296632032,-500.0,0.00016999,2]
[388643709,1759296632042,-33456.51963848,0.00017,2]
[388643710,1759296632167,-553.85299994,0.00017,2]
[388643715,1759296637649,-693.48215818,0.000169,2]
[388643716,1759296637765,-620.69255301,0.000169,2]
[388643717,1759296637775,-166.17,0.0001699,2]
[388643718,1759296637784,-166.17,0.0001699,2]
[388643719,1759296637793,-168.16744699,0.0001699,2]
[388643720,1759296637807,-501.28468227,0.0001699,2]
[388643721,1759296637817,-669.45212926,0.0001699,2]
[388643722,1759296637827,-1069.26318847,0.00017,2]
[388643723,1759296639544,-48175.09687578,0.00017,2]
[388643724,1759296639685,-21985.63988538,0.00017,2]
[388643725,1759296639714,-2599.62282328,0.00017,2]
[388643726,1759296639887,-500.0,0.00016999,2]
[388643727,1759296639896,-1532.67164072,0.00017,2]
[388643728,1759296639907,-3229.03239233,0.00017,2]
[388643729,1759296639918,-12977.38222585,0.00017,2]
[388643731,1759296640041,-5204.242646,0.00017,2]
[388643732,1759296640052,-168105.45833487,0.00017,2]
[388643733,1759296640062,-4833947.1716825,0.00017,2]
[388643734,1759296640071,-250.0,0.00017,2]
[388643736,1759296640081,-157.07,0.00017223,2]
[388643737,1759296640090,-250.0,0.00017292,2]
[388643738,1759296640099,-257.91778498,0.00017332,2]
[388643739,1759296640109,-6069.90484265,0.00017361,2]
[388643740,1759296640120,-246.35371027,0.00017366,2]
[388643741,1759296640129,-6069.90484265,0.00017368,2]
[388643742,1759296640138,-6784.80749362,0.00017379,2]
[388643743,1759296640147,-246.35371027,0.00017379,2]
[388643744,1759296640157,-97643.70774208,0.00017385,2]
[388643745,1759296640167,-295.79690753,0.00017387,2]
[388643746,1759296640176,-8269.85008735,0.00017387,2]
[388643747,1759296640186,-675.21854691,0.00017391,2]
[388643748,1759296640195,-9816.52331242,0.00017391,2]
[388643749,1759296640206,-675.21854691,0.00017395,2]
[388643750,1759296640215,-8269.85008735,0.00017396,2]
[388643751,1759296640225,-13032.12986141,0.00017396,2]
[388643752,1759296640234,-8269.85008735,0.00017396,2]
[388643753,1759296640247,-9816.52331242,0.00017397,2]
[388643754,1759296640425,-9232.07702798,0.000174,2]
[388643755,1759296640463,-8269.85008735,0.00017402,2]
[388643756,1759296640474,-6069.90484265,0.00017404,2]
[388643757,1759296640484,-9816.52331242,0.00017404,2]
[388643758,1759296640494,-13032.12986141,0.00017406,2]
[388643759,1759296640504,-246.35371027,0.00017406,2]
[388643760,1759296640513,-97643.70774208,0.00017412,2]
[388643761,1759296640523,-9816.52331242,0.00017414,2]
[388643762,1759296640533,-675.21854691,0.00017415,2]
[388643763,1759296640542,-6784.80749362,0.00017417,2]
[388643764,1759296640552,-6784.80749362,0.00017418,2]
[388643765,1759296640561,-8269.85008735,0.00017419,2]
[388643766,1759296640571,-196.90850865,0.0001742,2]
[388643767,1759296640580,-4223.31909997,0.00017422,2]
[388643768,1759296640591,-4223.31909997,0.00017423,2]
[388643769,1759296640600,-97643.70774208,0.00017424,2]
[388643770,1759296640611,-295.79690753,0.00017425,2]
[388643771,1759296640622,-675.21854691,0.00017426,2]
[388643772,1759296640634,-13032.12986141,0.0001743,2]
[388643773,1759296640643,-6784.80749362,0.0001744,2]
[388643774,1759296640655,-9232.07702798,0.00017443,2]
[388643775,1759296640666,-6784.80749362,0.00017447,2]
[388643776,1759296640675,-4223.31909997,0.00017448,2]
[388643777,1759296640684,-246.35371027,0.00017452,2]
[388643778,1759296640695,-6069.90484265,0.00017454,2]
[388643779,1759296640705,-295.79690753,0.00017456,2]
[388643780,1759296640716,-13032.12986141,0.00017457,2]
[388643781,1759296640728,-9232.07702798,0.00017457,2]
[388643782,1759296640739,-9816.52331242,0.00017457,2]
[388643783,1759296640750,-295.79690753,0.00017462,2]
[388643784,1759296640759,-97643.70774208,0.00017464,2]
[388643785,1759296640769,-196.90850865,0.00017465,2]
[388643786,1759296640778,-196.90850865,0.0001747,2]
[388643787,1759296640788,-4223.31909997,0.00017475,2]
[388643788,1759296640798,-675.21854691,0.00017484,2]
[388643789,1759296640808,-97643.70774208,0.00017484,2]
[388643790,1759296640817,-246.35371027,0.00017486,2]
[388643791,1759296640827,-13032.12986141,0.00017491,2]
[388643792,1759296640836,-6069.90484265,0.00017493,2]
[388643793,1759296640846,-196.90850865,0.00017496,2]
[388643794,1759296640855,-9232.07702798,0.00017496,2]
[388643795,1759296640864,-196.90850865,0.00017497,2]
[388643796,1759296640873,-4223.31909997,0.00017498,2]
[388643797,1759296640883,-9232.07702798,0.00017499,2]
[388643798,1759296640892,-295.79690753,0.000175,2]
[388643799,1759296640901,-226.21,0.0001769,2]
[388643800,1759296640910,-163.54,0.00017752,2]
[388643801,1759296640920,-1000.0,0.000178,2]
[388643802,1759296640929,-250.0,0.0001781,2]
[388643803,1759296640938,-157.07,0.00017861,2]
[388643804,1759296640947,-165.0,0.0001788,2]
[388643805,1759296640956,-5280.79818979,0.00018,2]
[388643806,1759296640966,-502.26689896,0.00018241,2]
[388643807,1759296640975,-223.18637219,0.00018241,2]
[388643808,1759296640985,-408.88115466,0.00018248,2]
[388643809,1759296640996,-506.19311601,0.00018248,2]
[388643810,1759296641005,-1314.17471114,0.000183,2]
[388643811,1759296641015,-1219.0,0.000184,2]
[388643812,1759296641024,-420.0,0.00018459,2]
[388643813,1759296641034,-887.77907655,0.00018537,2]
[388643814,1759296641043,-1680.0,0.00018551,2]
[388643815,1759296641052,-1446.45423022,0.0001857,2]
[388643816,1759296641062,-226.21,0.00018575,2]
[388643817,1759296641071,-700.0,0.0001858,2]
[388643818,1759296641081,-2500.0,0.00018589,2]
[388643819,1759296641090,-182.7109848,0.000186,2]
[388643820,1759296641101,-1195.54,0.0001863,2]
[388643821,1759296641110,-354.55,0.0001863,2]
[388643822,1759296641120,-301.12,0.0001863,2]
[388643823,1759296641129,-601.3376128,0.00018677,2]
[388643824,1759296641138,-500.0,0.00018677,2]
[388643825,1759296641148,-151.0,0.00018677,2]
[388643826,1759296641158,-500.0,0.00018677,2]
[388643827,1759296641168,-151.0,0.00018677,2]
[388643828,1759296641177,-500.0,0.00018677,2]
[388643829,1759296641186,-151.0,0.00018677,2]
[388643830,1759296641196,-500.0,0.00018677,2]
[388643831,1759296641205,-151.0,0.00018677,2]
[388643832,1759296641215,-151.0,0.00018677,2]
[388643833,1759296641225,-151.0,0.00018677,2]
[388643834,1759296641234,-500.0,0.00018677,2]
[388643835,1759296641243,-500.0,0.00018677,2]
[388643836,1759296641253,-500.0,0.00018677,2]
[388643837,1759296641263,-500.0,0.00018677,2]
[388643838,1759296641272,-500.0,0.00018677,2]
[388643839,1759296641282,-151.0,0.00018677,2]
[388643840,1759296641291,-500.0,0.00018677,2]
[388643841,1759296641301,-151.0,0.00018677,2]
[388643842,1759296641311,-500.0,0.00018677,2]
[388643843,1759296641320,-500.0,0.00018677,2]
[388643844,1759296641331,-500.0,0.00018677,2]
[388643845,1759296641342,-151.0,0.00018677,2]
[388643846,1759296641352,-151.0,0.00018677,2]
[388643847,1759296641362,-212.24530523,0.00018677,2]
[388643848,1759296641371,-322.6107,0.00018677,2]
[388643849,1759296641382,-151.09931554,0.00018677,2]
[388643850,1759296641395,-500.0,0.00018677,2]
[388643851,1759296641404,-500.0,0.00018677,2]
[388643852,1759296641414,-500.0,0.00018677,2]
[388643853,1759296641423,-500.0,0.00018677,2]
[388643854,1759296641433,-500.0,0.00018677,2]
[388643855,1759296641443,-500.0,0.00018677,2]
[388643856,1759296641452,-500.0,0.00018677,2]
[388643857,1759296641462,-500.0,0.00018677,2]
[388643858,1759296641471,-500.0,0.00018677,2]
[388643859,1759296641482,-500.0,0.00018677,2]
[388643860,1759296641492,-500.0,0.00018677,2]
[388643861,1759296641502,-500.0,0.00018677,2]
[388643862,1759296641512,-500.0,0.00018677,2]
[388643863,1759296641521,-500.0,0.00018677,2]
[388643864,1759296641531,-304.12452753,0.00018677,2]
[388643865,1759296641540,-500.0,0.00018677,2]
[388643866,1759296641554,-500.0,0.00018677,2]
[388643867,1759296641564,-200.0,0.00018677,2]
[388643868,1759296641573,-200.0,0.00018677,2]
[388643869,1759296641583,-200.0,0.00018677,2]
[388643870,1759296641592,-151.0,0.00018677,2]
[388643871,1759296641600,-200.0,0.00018677,2]
[388643872,1759296641610,-151.0,0.00018677,2]
[388643873,1759296641619,-200.0,0.00018677,2]
[388643874,1759296641628,-151.0,0.00018677,2]
[388643875,1759296641638,-200.0,0.00018677,2]
[388643876,1759296641648,-151.0,0.00018677,2]
[388643877,1759296641662,-200.0,0.00018677,2]
[388643878,1759296641671,-151.0,0.00018677,2]
[388643879,1759296641680,-200.0,0.00018677,2]
[388643880,1759296641690,-500.0,0.00018677,2]
[388643881,1759296641699,-151.0,0.00018677,2]
[388643882,1759296641708,-229.24644817,0.00018677,2]
[388643883,1759296641717,-500.0,0.00018677,2]
[388643884,1759296641727,-151.0,0.00018677,2]
[388643885,1759296641739,-500.0,0.00018677,2]
[388643886,1759296641748,-151.0,0.00018677,2]
[388643887,1759296641758,-500.0,0.00018677,2]
[388643888,1759296641767,-151.0,0.00018677,2]
[388643889,1759296641776,-500.0,0.00018677,2]
[388643890,1759296641786,-500.0,0.00018677,2]
[388643891,1759296641795,-500.0,0.00018677,2]
[388643892,1759296641805,-151.0,0.00018677,2]
[388643893,1759296641814,-500.0,0.00018677,2]
[388643894,1759296641824,-151.0,0.00018677,2]
[388643895,1759296641833,-500.0,0.00018677,2]
[388643896,1759296641842,-151.0,0.00018677,2]
[388643897,1759296641851,-500.0,0.00018677,2]
[388643898,1759296641861,-151.0,0.00018677,2]
[388643899,1759296641870,-500.0,0.00018677,2]
[388643900,1759296641879,-151.0,0.00018677,2]
[388643901,1759296641889,-500.0,0.00018677,2]
[388643902,1759296641898,-168.81993197,0.00018677,2]
[388643903,1759296641908,-500.0,0.00018677,2]
[388643904,1759296641917,-500.0,0.00018677,2]
[388643905,1759296641926,-500.0,0.00018677,2]
[388643906,1759296641936,-500.0,0.00018677,2]
[388643907,1759296641945,-500.0,0.00018677,2]
[388643908,1759296641954,-630.80881729,0.00018688,2]
[388643909,1759296641964,-20041.75106456,0.00018688,2]
[388643910,1759296641974,-254.77713826,0.00018699,2]
[388643911,1759296641984,-300.0,0.00018699,2]
[388643912,1759296641993,-195.0,0.00018699,2]
[388643913,1759296642003,-3002.45589768,0.000187,2]
[388643914,1759296642012,-267.46074303,0.00018701,2]
[388643915,1759296642021,-10109.8918888,0.00018708,2]
[388643916,1759296642031,-301.04,0.00018715,2]
[388643917,1759296642040,-164.28770196,0.00018769,2]
[388643918,1759296642050,-259.17,0.00018777,2]
[388643919,1759296642059,-283.2,0.00018778,2]
[388643920,1759296642068,-250000.0,0.0001878,2]
[388643921,1759296642078,-4944.245553,0.0001878,2]
[388643922,1759296642088,-151.0,0.0001878,2]
[388643923,1759296642098,-4944.245553,0.0001878,2]
[388643924,1759296642107,-151.0,0.0001878,2]
[388643925,1759296642116,-4944.245553,0.0001878,2]
[388643926,1759296642125,-4944.245553,0.0001878,2]
[388643927,1759296642135,-151.0,0.0001878,2]
[388643928,1759296642144,-151.0,0.0001878,2]
[388643929,1759296642154,-151.0,0.0001878,2]
[388643930,1759296642164,-151.0,0.0001878,2]
[388643931,1759296642173,-151.0,0.0001878,2]
[388643932,1759296642182,-394.900385,0.0001878,2]
[388643933,1759296642192,-151.0,0.0001878,2]
[388643934,1759296642201,-394.900385,0.0001878,2]
[388643935,1759296642210,-1383.038414,0.0001878,2]
[388643936,1759296642219,-394.900385,0.0001878,2]
[388643937,1759296642229,-152.612538,0.0001878,2]
[388643938,1759296642238,-1383.038414,0.0001878,2]
[388643939,1759296642249,-394.900385,0.0001878,2]
[388643940,1759296642258,-1383.038414,0.0001878,2]
[388643941,1759296642268,-1383.038414,0.0001878,2]
[388643942,1759296642277,-151.0,0.0001878,2]
[388643943,1759296642287,-477.968594,0.0001878,2]
[388643944,1759296642296,-151.0,0.0001878,2]
[388643945,1759296642306,-151.0,0.0001878,2]
[388643946,1759296642315,-477.968594,0.0001878,2]
[388643947,1759296642324,-151.0,0.0001878,2]
[388643948,1759296642334,-477.968594,0.0001878,2]
[388643949,1759296642343,-151.0,0.0001878,2]
[388643950,1759296642352,-477.968594,0.0001878,2]
[388643951,1759296642361,-151.0,0.0001878,2]
[388643952,1759296642370,-151.0,0.0001878,2]
[388643953,1759296642379,-151.0,0.0001878,2]
[388643954,1759296642388,-256.709787,0.0001878,2]
[388643955,1759296642397,-578.351756,0.0001878,2]
[388643956,1759296642406,-278.99058,0.0001878,2]
[388643957,1759296642415,-256.709787,0.0001878,2]
[388643958,1759296642424,-578.351756,0.0001878,2]
[388643959,1759296642433,-256.709787,0.0001878,2]
[388643960,1759296642443,-578.351756,0.0001878,2]
[388643961,1759296642452,-151.0,0.0001878,2]
[388643962,1759296642461,-256.709787,0.0001878,2]
[388643963,1759296642470,-578.351756,0.0001878,2]
[388643964,1759296642480,-151.0,0.0001878,2]
[388643965,1759296642489,-161.348386,0.0001878,2]
[388643966,1759296642499,-233.927017,0.0001878,2]
[388643967,1759296642509,-161.348386,0.0001878,2]
[388643968,1759296642518,-161.348386,0.0001878,2]
[388643969,1759296642527,-161.348386,0.0001878,2]